bitfinex-derivatives/quotes_SOLF0:USTF0_20251211
["timestamp","ask_amount","ask_price","bid_price","bid_amount"]
[1765441925599,3.42,130.39,130.37,65.17884778]
[1765441926492,3.42,130.39,130.37,0.05884778]
[1765441926996,18.97,130.38,130.37,0.05884778]
[1765441930505,15.55,130.38,130.37,0.05884778]
[1765441930810,18.97,130.38,130.37,0.05884778]
[1765441932803,3.42,130.37,130.31,6.905]
[1765441933110,3.42,130.36,130.29,65.12]
[1765441933307,3.42,130.35,130.3,6.9056]
[1765441933805,3.42,130.33,130.31,0.05040873]
[1765441936101,0.05574977,130.34,130.32,6.9048]
[1765441936907,0.05574977,130.34,130.32,75.65174823]
[1765441952330,15.55,130.38,130.36,6.9025]
[1765441952627,18.97,130.38,130.36,72.0225]
[1765441953121,19.02391973,130.38,130.36,72.07281647]
[1765441953815,15.60391973,130.38,130.36,72.07281647]
[1765441956029,3.4,130.37,130.36,72.07281647]
[1765441957231,3.4,130.37,130.36,6.95281647]
[1765441957531,3.4,130.37,130.36,0.05031647]
[1765441967128,15.60391973,130.38,130.36,0.05031647]
[1765441967129,0.05391973,130.38,130.36,0.05031647]
[1765441968032,0.05391973,130.38,130.36,6.95291647]
[1765441968345,3.4,130.41,130.36,176.1659647]
[1765441968828,3.4,130.41,130.38,2.31626267]
[1765441969225,3.45470389,130.41,130.38,2.31626267]
[1765441969932,3.45470389,130.41,130.38,9.21766267]
[1765441971837,3.45470389,130.41,130.36,72.07261647]
[1765441972133,3.45470389,130.41,130.38,2.31626267]
[1765441972334,3.45470389,130.41,130.36,74.36887914]
[1765441977634,3.45470389,130.41,130.37,6.9018]
[1765441979340,3.45470389,130.41,130.38,2.31626267]
[1765441981946,0.05470389,130.41,130.38,2.31626267]
[1765441982753,0.05470389,130.41,130.4,2.31626267]
[1765441985255,12.58,130.43,130.4,67.41626267]
[1765441985442,3.3,130.42,130.41,2.31626267]
[1765441985640,3.3,130.42,130.4,67.41626267]
[1765441986254,3.35428558,130.42,130.39,0.05367488]
[1765441986544,3.3,130.41,130.39,0.05367488]
[1765441990047,5.61626267,130.41,130.39,0.05367488]
[1765441990243,3.3,130.4,130.39,0.05367488]
[1765441990443,3.3,130.4,130.36,72.0023]
[1765441990444,3.3,130.4,130.36,65.1]
[1765441990743,3.3,130.4,130.36,72.0025]
[1765441991334,3.3,130.4,130.37,0.05060534]
[1765441991535,3.3,130.38,130.37,0.05060534]
[1765441992748,3.35433988,130.39,130.37,6.95260534]
[1765441996955,0.05433988,130.39,130.37,6.95260534]
[1765441997154,0.05433988,130.39,130.37,9.26886801]
[1765441997746,0.05433988,130.39,130.37,6.95260534]
[1765441997946,3.35433988,130.39,130.37,0.05060534]
[1765442008864,3.35433988,130.39,130.37,6.95250534]
[1765442009269,3.35433988,130.39,130.37,0.05060534]
[1765442013777,3.3,130.38,130.37,0.05060534]
[1765442041600,16.09433988,130.39,130.37,6.95260534]
[1765442041902,3.42,130.38,130.37,6.95260534]
[1765442047004,3.42,130.38,130.37,0.05060534]
[1765442058214,3.42,130.38,130.33,65.1]
[1765442059212,3.42,130.38,130.34,0.0501694]
[1765442059993,3.42,130.38,130.34,6.9535694]
[1765442060394,3.42,130.38,130.34,0.0501694]
[1765442060699,3.16,130.36,130.35,6.9032]
[1765442062712,3.16,130.36,130.34,0.0501694]
[1765442062900,3.21803799,130.36,130.34,0.0501694]
[1765442065610,3.21803799,130.36,130.34,0.0001694]
[1765442065815,6.83865142,130.36,130.34,0.0001694]
[1765442066015,3.16,130.35,130.34,0.0001694]
[1765442076526,22.16,130.35,130.34,0.0001694]
[1765442079625,3.14,130.33,130.26,6.9077]
[1765442080730,3.14,130.3,130.28,0.05061256]
[1765442080917,3.1922164,130.31,130.28,0.05061256]
[1765442084022,3.1922164,130.31,130.28,6.95731256]
[1765442084431,3.1922164,130.31,130.28,0.05061256]
[1765442084622,3.14,130.3,130.24,65.12]
[1765442084817,3.14,130.28,130.24,172.5928]
[1765442085429,3.14,130.28,130.24,176.21341343]
[1765442085833,0.05848476,130.27,130.24,172.5928]
[1765442086031,3.19848476,130.27,130.24,68.74061343]
[1765442086223,3.19848476,130.27,130.24,65.12]
[1765442087028,3.19848476,130.27,130.24,72.0287]
[1765442088934,12.69,130.26,130.24,72.0287]
[1765442089338,15.83,130.26,130.24,72.0287]
[1765442090729,15.83,130.26,130.24,74.35007981]
[1765442091132,15.83,130.26,130.24,72.0287]
[1765442091334,15.83,130.26,130.24,74.35007981]
[1765442093326,3.14,130.3,130.27,6.9072]
[1765442093637,3.14,130.3,130.28,2.32137981]
[1765442094036,3.14,130.32,130.28,9.22797981]
[1765442094239,3.14,130.32,130.3,2.32137981]
[1765442094438,3.19170686,130.32,130.3,2.37363571]
[1765442095431,3.19170686,130.32,130.3,0.0522559]
[1765442103846,3.19170686,130.32,130.26,9.22887981]
[1765442104047,3.19170686,130.32,130.28,2.32137981]
[1765442104341,3.19170686,130.32,130.25,172.6014]
[1765442104342,3.14,130.32,130.3,2.32137981]
[1765442104946,3.14,130.32,130.28,2.32137981]
[1765442105135,3.16,130.3,130.26,6.9078]
[1765442105332,3.16,130.3,130.26,9.22917981]
[1765442106235,3.16,130.3,130.26,6.9078]
[1765442106434,3.16,130.3,130.28,2.32137981]
[1765442109547,3.16,130.3,130.27,2.32137981]
[1765442112250,3.16,130.3,130.26,9.22917981]
[1765442113158,3.16,130.3,130.25,65.14]
[1765442113653,3.16,130.3,130.25,72.0482]
[1765442115853,3.16,130.3,130.26,2.32137981]
[1765442116055,3.16,130.3,130.25,65.14]
[1765442116251,5.48137981,130.3,130.25,65.14]
[1765442116550,3.37,130.29,130.25,65.14]
[1765442116751,3.42813602,130.28,130.25,65.14]
[1765442116953,3.42813602,130.28,130.25,72.0483]
[1765442123064,0.05813602,130.28,130.25,72.0483]
[1765442123260,3.42813602,130.28,130.25,72.0483]
[1765442123466,3.42813602,130.28,130.25,74.36967981]
[1765442125164,3.42813602,130.28,130.25,72.0483]
[1765442126167,0.05813602,130.28,130.26,6.9077]
[1765442126361,0.05813602,130.28,130.26,9.22907981]
[1765442127272,0.05813602,130.28,130.26,6.9077]
[1765442127571,3.42813602,130.28,130.26,6.9077]
[1765442128272,3.42813602,130.28,130.24,6.9086]
[1765442131579,3.37,130.27,130.23,65.16]
[1765442132572,3.37,130.26,130.22,6.9097]
[1765442132770,3.42027983,130.25,130.22,6.9097]
[1765442133866,3.42027983,130.25,130.21,67.48137981]
[1765442134066,3.42027983,130.25,130.16,126.50834169]
[1765442134264,3.42511893,130.22,130.16,2.32137981]
[1765442135281,3.42511893,130.22,130.15,67.48137981]
[1765442135575,3.42511893,130.22,130.17,6.9126]
[1765442135768,3.42511893,130.22,130.17,9.23397981]
[1765442135969,3.42511893,130.22,130.17,2.32137981]
[1765442136165,3.42511893,130.22,130.19,6.9115]
[1765442136472,3.42511893,130.22,130.17,2.32137981]
[1765442137577,3.33,130.21,130.17,9.23387981]
[1765442137769,3.33,130.21,130.16,2.32137981]
[1765442137973,3.38853234,130.2,130.16,2.32137981]
[1765442138270,3.38853234,130.2,130.15,67.48137981]
[1765442138672,3.38853234,130.2,130.15,65.16]
[1765442138977,3.33,130.19,130.15,65.16]
[1765442139967,3.33,130.17,130.12,2.32137981]
[1765442140172,3.38054762,130.16,130.12,67.50137981]
[1765442140674,0.05054762,130.16,130.13,6.9146]
[1765442140871,3.38054762,130.16,130.13,6.9146]
[1765442141062,3.33,130.14,130.07,4.38856803]
[1765442141261,3.33,130.1,130.07,4.38856803]
[1765442141676,3.37887213,130.12,130.07,4.38856803]
[1765442141868,0.04887213,130.12,130.07,177.17906803]
[1765442142069,0.04887213,130.12,130.1,2.32137981]
[1765442142776,0.04887213,130.12,130.11,2.32137981]
[1765442143376,3.37887213,130.12,130.11,2.32137981]
[1765442143579,0.04887213,130.12,130.07,177.17676803]
[1765442143872,0.04887213,130.12,130.11,2.32137981]
[1765442146086,3.33,130.17,130.11,175.09927981]
[1765442146274,3.33,130.2,130.16,2.32137981]
[1765442146578,3.33,130.2,130.18,2.32137981]
[1765442146974,3.38080096,130.2,130.18,2.37046887]
[1765442147277,3.38080096,130.2,130.18,0.04908906]
[1765442147487,3.38080096,130.2,130.18,2.37046887]
[1765442148373,0.05080096,130.2,130.18,2.37046887]
[1765442149773,107.4298,130.3,130.19,172.7152]
[1765442149774,3.33,130.26,130.19,172.7152]
[1765442149971,3.33,130.26,130.24,2.32137981]
[1765442150782,3.38409089,130.26,130.24,0.0522064]
[1765442150983,3.38409089,130.26,130.19,65.2]
[1765442151979,3.38409089,130.26,130.21,0.05472225]
[1765442153279,3.38409089,130.26,130.21,6.96532225]
[1765442154279,3.38409089,130.26,130.21,0.05472225]
[1765442157180,10.29229089,130.26,130.21,0.05472225]
[1765442157485,3.33,130.25,130.21,0.05472225]
[1765442158783,3.33,130.24,130.21,0.05472225]
[1765442159991,10.2392,130.24,130.21,0.05472225]
[1765442160185,3.33,130.23,130.21,0.05472225]
[1765442160381,3.38746413,130.23,130.21,0.05472225]
[1765442165694,0.05746413,130.23,130.21,0.05472225]
[1765442166092,0.05746413,130.23,130.21,6.96512225]
[1765442167087,0.05746413,130.23,130.21,72.16512225]
[1765442170694,0.05746413,130.23,130.22,3.62721959]
[1765442170894,3.32,130.29,130.23,6.9093]
[1765442171080,3.32,130.29,130.24,3.62721959]
[1765442171392,3.32,130.29,130.24,10.53611959]
[1765442171891,0.05163893,130.28,130.25,0.04873503]
[1765442172092,3.32,130.25,130.17,107.5317]
[1765442172589,3.32,130.25,130.19,6.9114]
[1765442172991,3.37468353,130.23,130.21,0.05888599]
[1765442173200,3.37017221,130.23,130.21,0.05888599]
[1765442173894,0.05017221,130.23,130.21,0.05888599]
[1765442175001,0.05017221,130.23,130.21,6.96938599]
[1765442179392,3.37017221,130.23,130.21,0.05888599]
[1765442179601,0.05017221,130.23,130.21,0.05888599]
[1765442180089,0.05017221,130.23,130.21,6.96928599]
[1765442186002,0.05017221,130.23,130.21,10.59650558]
[1765442187102,0.05017221,130.23,130.21,6.96928599]
[1765442187992,0.05017221,130.23,130.21,10.59650558]
[1765442191100,3.32,130.29,130.25,6.9085]
[1765442191692,3.32,130.31,130.26,6.9078]
[1765442192102,3.37634832,130.3,130.27,0.0549851]
[1765442201015,22.37634832,130.3,130.27,0.0549851]
[1765442201413,3.17,130.29,130.27,0.0549851]
[1765442213014,3.17,130.29,130.27,6.9620851]
[1765442213217,22.22634832,130.3,130.27,6.9620851]
[1765442215814,22.22634832,130.3,130.28,6.9068]
[1765442216021,3.22634832,130.3,130.28,6.9068]
[1765442216408,0.05634832,130.3,130.28,6.9068]
[1765442216611,0.05634832,130.3,130.28,9.2274152]
[1765442218616,3.17,130.33,130.28,109.7545152]
[1765442218919,3.17,130.36,130.31,2.3206152]
[1765442219119,3.17,130.33,130.28,6.9069]
[1765442219320,3.17,130.32,130.28,6.9069]
[1765442219724,3.17,130.3,130.29,0.05417197]
[1765442224831,3.23671796,130.31,130.29,0.05417197]
[1765442225425,0.05671796,130.31,130.29,6.96037197]
[1765442226424,3.23671796,130.31,130.29,0.05417197]
[1765442234626,5.55733316,130.31,130.29,0.05417197]
[1765442234932,3.12,130.3,130.29,0.05417197]
[1765442257865,0.05671796,130.31,130.29,9.28088717]
[1765442258065,3.23671796,130.31,130.29,6.96027197]
[1765442262357,0.05671796,130.31,130.29,6.96027197]
[1765442262554,0.05671796,130.31,130.3,2.3206152]
[1765442263366,3.18,130.33,130.32,2.3206152]
[1765442265165,3.23773091,130.34,130.32,9.2250152]
[1765442265373,0.05773091,130.34,130.32,74.44275809]
[1765442266970,3.18,130.37,130.35,6.9032]
[1765442267974,3.23873915,130.37,130.35,6.95474632]
[1765442268277,3.23873915,130.37,130.35,0.05154632]
[1765442270367,0.05873915,130.37,130.35,9.27506152]
[1765442270676,3.23873915,130.37,130.35,9.27506152]
[1765442274684,3.23873915,130.37,130.35,6.95444632]
[1765442277983,3.23873915,130.37,130.35,72.09444632]
[1765442281181,0.05873915,130.37,130.35,72.09444632]
[1765442281488,3.18,130.4,130.38,6.9014]
[1765442282284,3.23411918,130.4,130.38,6.95803128]
[1765442284088,3.23411918,130.4,130.38,72.07803128]
[1765442284582,0.05411918,130.4,130.38,72.07803128]
[1765442287993,3.15,130.46,130.39,110.96938181]
[1765442288787,3.15,130.46,130.42,6.8994]
[1765442288983,0.04978513,130.44,130.42,6.8994]
[1765442289183,3.19978513,130.44,130.42,6.8994]
[1765442289588,0.04978513,130.44,130.42,6.8994]
[1765442291195,3.19978513,130.44,130.42,6.8994]
[1765442291986,3.19978513,130.44,130.41,0.05283729]
[1765442292192,3.27,130.42,130.41,0.05283729]
[1765442292398,3.27,130.42,130.41,0.00283729]
[1765442300303,3.31978513,130.44,130.41,6.90253729]
[1765442301301,0.04978513,130.44,130.42,6.8992]
[1765442301708,0.04978513,130.44,130.42,71.9992]
[1765442302612,3.27,130.47,130.44,6.8981]
[1765442303000,3.27,130.47,130.43,107.3173]
[1765442303302,3.27,130.5,130.43,110.93828181]
[1765442303708,3.27,130.47,130.45,0.04880976]
[1765442304206,3.27,130.47,130.45,6.94650976]
[1765442304707,3.27,130.47,130.45,0.04880976]
[1765442310210,3.27,130.47,130.41,6.8997]
[1765442310211,3.27,130.45,130.41,6.8997]
[1765442311110,3.27,130.43,130.42,0.05486926]
[1765442317217,0.05665108,130.44,130.42,0.05486926]
[1765442317403,3.22665108,130.44,130.42,0.05486926]
[1765442318317,0.05665108,130.44,130.42,0.05486926]
[1765442318822,0.05665108,130.44,130.42,6.95426926]
[1765442321331,0.05665108,130.44,130.42,75.67525107]
[1765442323213,3.22665108,130.44,130.42,72.05426926]
[1765442323420,3.22665108,130.44,130.42,0.05486926]
[1765442324616,3.22665108,130.44,130.34,111.00828181]
[1765442324814,3.17,130.42,130.35,65.08]
[1765442325613,3.17,130.39,130.37,0.05058461]
[1765442338823,3.17,130.37,130.35,65.08]
[1765442340034,3.22497021,130.37,130.35,65.13165267]
[1765442341030,3.22497021,130.37,130.35,0.05165267]
[1765442355146,3.17,130.35,130.29,2.31763932]
[1765442355348,3.17,130.34,130.29,2.31763932]
[1765442355947,3.22061011,130.33,130.3,0.05119622]
[1765442361151,3.22061011,130.33,130.3,6.95689622]
[1765442361850,3.22061011,130.33,130.3,9.27453554]
[1765442363049,3.22061011,130.33,130.3,6.95689622]
[1765442364948,10.12501011,130.33,130.3,0.05119622]
[1765442365153,3.17,130.31,130.3,0.00119622]
[1765442365360,3.17,130.3,130.26,2.31763932]
[1765442366044,3.17,130.3,130.25,2.31763932]
[1765442366360,3.17,130.28,130.26,0.05024497]
[1765442367053,3.17,130.28,130.26,6.95784497]
[1765442367546,3.17,130.28,130.26,0.05024497]
[1765442372144,5.48763932,130.28,130.26,0.05024497]
[1765442372340,3.17,130.27,130.26,0.05024497]
[1765442378354,3.17,130.27,130.23,65.14]
[1765442378760,3.28,130.26,130.23,65.14]
[1765442379372,3.33842382,130.26,130.23,65.19834557]
[1765442383263,3.33842382,130.26,130.23,0.05834557]
[1765442390271,3.28,130.24,130.19,65.18]
[1765442390474,3.28,130.22,130.19,65.18]
[1765442391277,3.33570498,130.22,130.19,65.22153859]
[1765442392270,3.33570498,130.22,130.19,0.04153859]
[1765442397073,22.33570498,130.22,130.19,0.04153859]
[1765442397380,3.28,130.21,130.19,0.04153859]
[1765442398076,19.05570498,130.22,130.19,0.04153859]
[1765442398478,22.33570498,130.22,130.19,0.04153859]
[1765442399175,19.05570498,130.22,130.19,0.04153859]
[1765442399376,3.28,130.21,130.19,0.04153859]
[1765442399573,22.33570498,130.22,130.19,0.04153859]
[1765442399780,0.05570498,130.22,130.2,6.911]
[1765442400279,0.05570498,130.22,130.2,10.54181613]
[1765442400667,0.05570498,130.22,130.2,77.28181613]
[1765442401583,3.28,130.26,130.23,6.9093]
[1765442402080,3.28,130.28,130.24,3.63081613]
[1765442402477,3.28,130.32,130.26,3.63081613]
[1765442402682,3.28,130.3,130.26,3.63081613]
[1765442402983,3.33216379,130.3,130.28,0.05894197]
[1765442404885,3.33216379,130.3,130.24,65.2]
[1765442404890,3.21,130.29,130.24,65.2]
[1765442405884,3.21,130.29,130.25,0.03830159]
[1765442408788,22.21,130.29,130.25,0.03830159]
[1765442409288,3.21,130.28,130.25,0.03830159]
[1765442413294,3.21,130.28,130.26,3.63081613]
[1765442413690,22.13,130.29,130.26,3.63081613]
[1765442414395,19.0,130.29,130.28,3.63081613]
[1765442414694,3.18216379,130.3,130.28,3.63081613]
[1765442414885,3.18216379,130.3,130.28,0.03830159]
[1765442415085,3.18216379,130.3,130.24,3.63081613]
[1765442415286,3.18216379,130.3,130.21,3.63081613]
[1765442415287,3.13,130.28,130.21,3.63081613]
[1765442415485,3.13,130.27,130.22,6.9099]
[1765442415689,3.13,130.27,130.23,3.63081613]
[1765442416197,0.05384928,130.26,130.23,3.63081613]
[1765442416691,3.18384928,130.26,130.23,3.63081613]
[1765442416895,3.18384928,130.26,130.24,6.9089]
[1765442417286,3.18384928,130.26,130.22,3.63081613]
[1765442417694,3.18384928,130.26,130.22,6.9097]
[1765442422404,3.18384928,130.26,130.2,68.81081613]
[1765442423297,3.18384928,130.26,130.2,75.72151613]
[1765442425204,3.13,130.25,130.2,75.72151613]
[1765442427401,3.13,130.25,130.2,72.0907]
[1765442427993,3.13,130.25,130.2,65.18]
[1765442428195,3.13,130.24,130.2,65.18]
[1765442428500,3.13,130.22,130.2,65.18]
[1765442429804,3.13,130.22,130.18,6.9118]
[1765442434303,0.05850761,130.23,130.18,6.9118]
[1765442434610,0.05850761,130.23,130.18,111.15121613]
[1765442435913,0.05850761,130.23,130.2,6.911]
[1765442436101,0.05850761,130.23,130.2,72.111]
[1765442441724,0.05850761,130.23,130.21,6.9105]
[1765442458832,3.31850761,130.23,130.21,6.9105]
[1765442459832,0.05850761,130.23,130.21,6.9105]
[1765442462239,3.31850761,130.23,130.17,2.32229943]
[1765442462437,3.26,130.21,130.17,67.52229943]
[1765442462742,3.31171455,130.2,130.17,67.52229943]
[1765442463440,0.05171455,130.2,130.17,67.52229943]
[1765442464037,0.05171455,130.2,130.18,6.912]
[1765442465042,0.05171455,130.2,130.17,65.2]
[1765442465043,3.21171455,130.2,130.17,65.2]
[1765442465547,0.05171455,130.2,130.17,65.2]
[1765442466043,0.05171455,130.2,130.17,72.1126]
[1765442466239,0.05171455,130.2,130.18,2.32229943]
[1765442467548,3.21171455,130.2,130.18,9.23419943]
[1765442476048,0.05171455,130.2,130.18,9.23419943]
[1765442480552,0.05171455,130.2,130.18,6.9119]
[1765442480754,0.05171455,130.2,130.18,9.23419943]
[1765442481660,19.0,130.24,130.19,107.5134]
[1765442481851,3.26,130.26,130.22,2.32229943]
[1765442482249,3.26,130.26,130.23,65.2]
[1765442482742,3.31250789,130.26,130.23,65.25171456]
[1765442486866,3.31250789,130.26,130.23,74.48341399]
[1765442487056,0.05250789,130.26,130.23,74.48341399]
[1765442487355,3.31250789,130.26,130.23,74.48341399]
[1765442488160,3.31250789,130.26,130.23,72.16111456]
[1765442488359,3.31250789,130.26,130.23,74.48341399]
[1765442488668,0.05250789,130.26,130.24,6.9089]
[1765442491362,3.31250789,130.26,130.24,6.9089]
[1765442491665,0.05250789,130.26,130.24,6.9089]
[1765442491966,3.31250789,130.26,130.24,6.9089]
[1765442493070,3.31250789,130.26,130.23,67.57401399]
[1765442493668,3.31250789,130.26,130.23,65.25171456]
[1765442493868,3.31250789,130.26,130.23,67.57401399]
[1765442494275,3.31250789,130.26,130.24,2.32229943]
[1765442495373,3.31250789,130.26,130.23,74.48341399]
[1765442496676,0.05250789,130.26,130.23,74.48341399]
[1765442500078,3.18250789,130.26,130.23,74.48341399]
[1765442501177,3.18250789,130.26,130.23,72.16111456]
[1765442501382,3.18250789,130.26,130.23,65.25171456]
[1765442502476,19.0,130.29,130.25,6.908]
[1765442502684,3.13,130.31,130.28,2.32229943]
[1765442502883,3.13,130.31,130.24,107.4739]
[1765442503188,3.13,130.31,130.25,65.18]
[1765442503477,3.18283671,130.29,130.27,0.05684844]
[1765442505084,3.13,130.27,130.23,6.9093]
[1765442506183,3.17959773,130.26,130.24,0.04737401]
[1765442513895,5.50189716,130.26,130.24,0.04737401]
[1765442514096,3.13,130.25,130.24,0.04737401]
[1765442528402,3.22959773,130.26,130.24,0.04737401]
[1765442528606,0.04959773,130.26,130.24,0.04737401]
[1765442528804,3.22959773,130.26,130.24,6.95627401]
[1765442529702,0.04959773,130.26,130.24,6.95627401]
[1765442532503,0.04959773,130.26,130.25,3.62898145]
[1765442533306,3.42,130.31,130.25,111.09078145]
[1765442533494,3.42,130.31,130.29,3.62898145]
[1765442534312,3.47246332,130.31,130.29,3.67874267]
[1765442544616,3.47246332,130.31,130.29,10.58504267]
[1765442549115,0.05246332,130.31,130.29,10.58504267]
[1765442549518,3.47246332,130.31,130.29,10.58504267]
[1765442550414,3.47246332,130.31,130.29,6.95606122]
[1765442550614,3.47246332,130.31,130.29,0.04976122]
[1765442555119,107.3754,130.36,130.29,3.67874267]
[1765442555120,3.29,130.34,130.29,3.67874267]
[1765442556125,3.29,130.32,130.29,3.67874267]
[1765442557037,3.29,130.32,130.3,6.9056]
[1765442563241,19.0,130.34,130.31,6.9049]
[1765442563242,3.29,130.34,130.31,6.9049]
[1765442563938,3.29,130.38,130.29,3.67874267]
[1765442564132,3.29,130.37,130.33,6.9038]
[1765442564333,3.3384841,130.36,130.34,0.05395113]
[1765442572447,10.2411841,130.36,130.34,0.05395113]
[1765442572640,6.91898145,130.35,130.3,6.9055]
[1765442572836,3.29,130.33,130.27,107.447]
[1765442573051,3.29,130.33,130.29,6.9063]
[1765442573648,3.34564798,130.32,130.3,0.05836033]
[1765442580954,3.29,130.31,130.3,0.05836033]
[1765442581257,3.29,130.3,130.21,107.4963]
[1765442581459,3.29,130.28,130.22,67.47984046]
[1765442582161,3.33962022,130.26,130.24,0.05220243]
[1765442588060,3.33962022,130.26,130.24,6.96090243]
[1765442588267,0.04962022,130.26,130.24,6.96090243]
[1765442589163,0.04962022,130.26,130.24,9.28074289]
[1765442590166,13.18622372,130.29,130.25,65.18]
[1765442590370,3.44,130.31,130.26,2.31984046]
[1765442590760,3.44,130.31,130.26,109.77464046]
[1765442591063,0.05324907,130.3,130.28,2.31984046]
[1765442591259,0.05505097,130.3,130.28,2.36909181]
[1765442592959,0.05505097,130.3,130.29,72.0864]
[1765442595766,0.05505097,130.3,130.29,74.40624046]
[1765442596861,3.40505097,130.3,130.29,72.0864]
[1765442597871,0.05505097,130.3,130.29,72.0864]
[1765442607075,3.40505097,130.3,130.28,65.20925135]
[1765442607983,3.40505097,130.3,130.28,0.04925135]
[1765442608186,3.40505097,130.3,130.25,9.22814046]
[1765442609182,3.40505097,130.3,130.26,0.05804376]
[1765442609681,10.31125097,130.3,130.26,0.05804376]
[1765442609883,3.35,130.29,130.26,0.05804376]
[1765442610380,3.35,130.28,130.26,0.05804376]
[1765442614185,3.35,130.29,130.26,0.05804376]
[1765442615683,3.35,130.29,130.26,6.96584376]
[1765442622492,0.05505097,130.3,130.26,0.05804376]
[1765442622693,3.48505097,130.3,130.26,0.05804376]
[1765442623285,3.48505097,130.3,130.26,6.96564376]
[1765442627892,10.39105097,130.3,130.26,0.05804376]
[1765442628095,3.43,130.29,130.26,0.05804376]
[1765442628797,5.74984046,130.29,130.26,0.05804376]
[1765442629003,3.43,130.28,130.26,0.05804376]
[1765442637400,22.41276418,130.29,130.26,0.05804376]
[1765442637401,16.61622372,130.29,130.26,0.05804376]
[1765442637600,3.43,130.28,130.26,0.05804376]
[1765442637996,16.61622372,130.29,130.26,0.05804376]
[1765442638303,3.43,130.28,130.26,0.05804376]
[1765442645015,0.05505097,130.3,130.26,0.05804376]
[1765442645620,3.50505097,130.3,130.28,6.9068]
[1765442650016,0.05505097,130.3,130.28,6.9068]
[1765442650217,3.50505097,130.3,130.28,6.9068]
[1765442655415,0.05505097,130.3,130.28,6.9068]
[1765442657522,3.44505097,130.3,130.28,6.9068]
[1765442661625,3.44505097,130.3,130.27,65.18]
[1765442663224,3.44505097,130.3,130.27,72.0874]
[1765442667428,3.44505097,130.3,130.27,6.9074]
[1765442668126,3.44505097,130.3,130.26,65.23804376]
[1765442669933,3.44505097,130.3,130.26,72.14564376]
[1765442677839,3.44505097,130.3,130.27,6.9073]
[1765442684644,0.05505097,130.3,130.27,6.9073]
[1765442687451,3.25505097,130.3,130.27,6.9073]
[1765442688045,0.05505097,130.3,130.27,6.9073]
[1765442688555,0.05505097,130.3,130.27,72.0873]
[1765442689244,3.25505097,130.3,130.27,72.0873]
[1765442691051,0.05505097,130.3,130.28,6.9066]
[1765442691243,16.38622372,130.35,130.29,107.4328]
[1765442692044,3.2,130.34,130.29,107.4328]
[1765442692251,0.05138769,130.33,130.3,0.05913704]
[1765442692454,3.25138769,130.33,130.31,65.18]
[1765442692956,3.25138769,130.33,130.31,72.085]
[1765442698055,0.05138769,130.33,130.31,72.085]
[1765442700758,0.05138769,130.33,130.3,0.05913704]
[1765442700759,3.25138769,130.33,130.3,0.05913704]
[1765442703062,3.25138769,130.33,130.3,6.96463704]
[1765442705454,0.05138769,130.33,130.31,6.9049]
[1765442708568,3.30138769,130.33,130.3,0.05913704]
[1765442714176,3.30138769,130.33,130.3,6.96483704]
[1765442715573,0.05138769,130.33,130.31,6.9052]
[1765442719273,3.42,130.37,130.33,6.904]
[1765442720180,3.42,130.35,130.34,0.04980051]
[1765442721272,3.47595759,130.36,130.34,0.04980051]
[1765442730290,0.05595759,130.36,130.34,6.95310051]
[1765442730689,3.47595759,130.36,130.34,6.95310051]
[1765442731491,0.05595759,130.36,130.34,6.95310051]
[1765442732986,3.42,130.38,130.36,6.9025]
[1765442733288,3.42,130.39,130.36,65.14]
[1765442734086,3.47883926,130.39,130.36,65.18887794]
[1765442735180,3.47883926,130.39,130.36,0.04887794]
[1765442736790,3.14,130.37,130.36,0.04887794]
[1765442741899,3.14,130.36,130.31,6.9049]
[1765442742100,3.14,130.36,130.31,9.22445508]
[1765442742703,3.14,130.36,130.32,6.9047]
[1765442742893,0.0561801,130.35,130.33,0.04975815]
[1765442743198,3.14,130.34,130.33,0.04975815]
[1765442743900,3.14,130.34,130.27,2.31955508]
[1765442743901,3.14,130.33,130.27,2.31955508]
[1765442744695,3.14,130.33,130.28,6.9067]
[1765442744986,0.05730905,130.32,130.29,0.05300752]
[1765442745188,3.14,130.31,130.29,0.05300752]
[1765442745697,3.19730905,130.32,130.29,0.05300752]
[1765442746002,3.19730905,130.32,130.29,9.2785626]
[1765442746898,0.05730905,130.32,130.3,6.9055]